bitfinex/quotes_SOLUSD_20240726
["timestamp","ask_amount","ask_price","bid_price","bid_amount"]
[1721956496022,31.5747,173.77,173.72,5.7562]
[1721956496618,5.7556,173.75,173.71,6.1238]
[1721956496798,5.7557,173.74,173.71,6.1238]
[1721956497209,5.7554,173.75,173.71,6.1238]
[1721956497620,5.7557,173.74,173.71,6.1238]
[1721956497813,5.7553,173.76,173.71,6.1238]
[1721956498009,5.7553,173.76,173.71,11.8804]
[1721956498601,5.7554,173.75,173.71,11.8804]
[1721956498803,5.7554,173.75,173.71,6.1238]
[1721956499017,5.7558,173.74,173.71,6.1238]
[1721956499813,45.0,173.73,173.68,16.4158]
[1721956500135,31.576,173.74,173.69,5.7573]
[1721956500500,20.0,173.77,173.68,16.4158]
[1721956500501,45.82,173.77,173.68,16.4158]
[1721956500795,5.7567,173.71,173.68,16.4158]
[1721956501012,5.7564,173.72,173.68,16.4158]
[1721956501223,5.7564,173.72,173.62,22.1975]
[1721956501224,20.0,173.72,173.62,22.1975]
[1721956501403,5.758,173.67,173.62,22.1975]
[1721956501720,25.82,173.71,173.62,22.1975]
[1721956501919,45.82,173.74,173.62,22.1975]
[1721956502229,5.7565,173.72,173.62,22.1975]
[1721956502438,45.0,173.73,173.62,22.1975]
[1721956502732,5.7574,173.69,173.64,5.7587]
[1721956503040,5.7577,173.68,173.64,5.7587]
[1721956503329,5.7584,173.66,173.62,22.1975]
[1721956503729,5.758,173.67,173.62,22.1975]
[1721956503903,25.82,173.71,173.62,22.1975]
[1721956504108,50.757,173.7,173.66,5.7583]
[1721956504308,5.7574,173.69,173.65,5.7586]
[1721956504927,25.82,173.74,173.68,5.7574]
[1721956505336,5.7565,173.72,173.67,5.758]
[1721956505514,45.82,173.74,173.66,5.7583]
[1721956505723,5.7574,173.69,173.65,5.7586]
[1721956505907,5.7574,173.69,173.64,5.7589]
[1721956506103,25.82,173.74,173.62,22.1975]
[1721956506304,25.82,173.74,173.67,5.7578]
[1721956506305,5.7564,173.72,173.67,5.7578]
[1721956506736,45.0,173.71,173.62,22.1975]
[1721956507030,45.0,173.72,173.62,22.1975]
[1721956507233,5.7561,173.73,173.68,5.7575]
[1721956507415,5.7561,173.73,173.63,1.15157959]
[1721956507616,5.7561,173.73,173.63,21.15157959]
[1721956508032,5.7561,173.73,173.63,20.0]
[1721956508341,5.7561,173.73,173.69,5.7573]
[1721956508515,45.82,173.77,173.63,21.15142575]
[1721956508829,5.7561,173.73,173.68,5.7576]
[1721956510037,5.7564,173.72,173.68,5.7576]
[1721956510249,5.756,173.74,173.63,20.0]
[1721956510418,45.82,173.8,173.64,15.704]
[1721956510734,5.7544,173.78,173.73,5.756]
[1721956510918,5.7548,173.77,173.73,5.756]
[1721956511323,25.82,173.8,173.73,5.756]
[1721956511522,20.0,173.79,173.71,6.0828]
[1721956511741,25.82,173.77,173.71,6.0828]
[1721956512042,5.756,173.73,173.68,5.7576]
[1721956512834,5.756,173.73,173.67,6.0851]
[1721956512835,5.7557,173.74,173.69,5.7573]
[1721956513039,25.82,173.77,173.7,5.757]
[1721956513239,5.7564,173.72,173.67,6.0851]
[1721956513420,5.7564,173.72,173.67,11.8428]
[1721956513618,25.82,173.74,173.67,6.0851]
[1721956513820,45.82,173.71,173.64,15.704]
[1721956514043,59.3934,173.7,173.62,6.4801]
[1721956514336,5.7584,173.66,173.62,6.4801]
[1721956514736,5.7581,173.67,173.62,12.2397]
[1721956515137,5.7584,173.66,173.62,6.4801]
[1721956515340,5.7597,173.62,173.57,6.5773325]
[1721956515534,70.82,173.65,173.57,6.5773325]
[1721956515535,5.7594,173.63,173.57,6.5773325]
[1721956515842,31.579,173.65,173.57,0.8160325]
[1721956516021,5.7583,173.67,173.57,0.8160325]
[1721956516222,5.7566,173.72,173.67,5.7578]
[1721956516436,5.7566,173.72,173.57,0.8160325]
[1721956516437,5.7577,173.68,173.57,1.96776054]
[1721956516633,5.7581,173.67,173.62,5.7596]
[1721956516824,5.7585,173.66,173.57,0.8160325]
[1721956517023,5.7576,173.69,173.64,5.7588]
[1721956517234,5.756,173.73,173.67,5.7577]
[1721956517626,5.7564,173.72,173.67,5.7577]
[1721956517951,5.7577,173.68,173.64,6.5473]
[1721956518144,14.3934,173.69,173.6,6.5473]
[1721956518444,48.7797,173.74,173.6,6.5473]
[1721956518656,79.3907,173.73,173.6,6.5473]
[1721956518947,45.0,173.73,173.61,1.15167126]
[1721956519143,5.7566,173.72,173.67,5.758]
[1721956519349,50.7567,173.71,173.66,5.7583]
[1721956519923,5.33656674,173.76,173.64,15.6646]
[1721956520146,256.6,173.83,173.65,65.0]
[1721956520349,5.7537,173.8,173.75,5.7553]
[1721956520639,5.7535,173.81,173.76,5.7549]
[1721956520839,5.7535,173.81,173.77,5.7547]
[1721956521049,5.7524,173.84,173.76,1.15087198]
[1721956521246,5.7524,173.84,173.75,21.3991]
[1721956521546,34.3787,173.87,173.75,21.3991]
[1721956521753,20.0,173.85,173.75,21.3991]
[1721956522243,5.753,173.83,173.77,5.7544]
[1721956522445,5.753,173.82,173.78,5.7543]
[1721956522825,5.7524,173.84,173.79,5.754]
[1721956523724,45.85756674,173.91,173.76,1.15076091]
[1721956523928,5.7514,173.88,173.83,5.7524]
[1721956524345,29.07,173.93,173.84,5.7524]
[1721956524565,20.0,173.92,173.76,1.15044568]
[1721956524869,5.7511,173.88,173.82,5.753]
[1721956525352,5.752,173.86,173.81,5.7533]
[1721956525534,14.3773,173.89,173.76,20.0]
[1721956525860,20.0,173.9,173.76,20.0]
[1721956526064,5.7517,173.86,173.81,5.7533]
[1721956526252,14.3768,173.9,173.76,20.0]
[1721956526566,14.3768,173.9,173.76,21.15054344]
[1721956526863,5.751,173.89,173.83,5.7524]
[1721956527031,5.751,173.89,173.77,1.15055523]
[1721956527032,5.7504,173.9,173.77,1.15055523]
[1721956527233,5.7508,173.89,173.84,5.7521]
[1721956527636,5.7512,173.88,173.84,5.7523]
[1721956527943,5.7497,173.92,173.78,23.0836]
[1721956528143,5.7497,173.92,173.79,66.15017951]
[1721956528354,5.7497,173.92,173.87,5.7511]
[1721956528554,5.7501,173.91,173.86,5.7517]
[1721956528754,290.9727,173.95,173.84,5.7522]
[1721956528938,5.751,173.89,173.84,5.7522]
[1721956529460,14.3768,173.9,173.79,20.0]
[1721956529650,5.7511,173.88,173.84,5.7523]
[1721956529855,5.7505,173.9,173.85,5.752]
[1721956530170,5.7499,173.92,173.8,1.15036194]
[1721956530469,5.7501,173.91,173.87,5.7513]
[1721956530639,5.7505,173.9,173.85,5.752]
[1721956531670,5.7511,173.88,173.83,5.7524]
[1721956531870,5.7514,173.87,173.83,5.7524]
[1721956532070,5.7514,173.88,173.79,1.15040216]
[1721956532271,5.7508,173.89,173.8,1.15034694]
[1721956533061,5.7504,173.9,173.85,5.752]
[1721956533372,5.7504,173.9,173.86,5.7517]
[1721956533569,5.7504,173.9,173.85,5.752]
[1721956533872,5.7508,173.89,173.8,1.15034694]
[1721956534170,5.75,173.92,173.87,5.7511]
[1721956534372,49.1915,173.97,173.87,5.7511]
[1721956534667,40.0,173.95,173.83,5.7524]
[1721956534963,40.0,173.95,173.82,5.753]
[1721956534964,5.7516,173.87,173.82,5.753]
[1721956536167,40.1557,173.91,173.78,23.0836]
[1721956536369,45.0,173.9,173.78,23.0836]
[1721956536559,5.7514,173.87,173.83,5.7526]
[1721956536759,45.0,173.9,173.81,5.753]
[1721956536968,5.766,173.97,173.82,1.15049895]
[1721956537269,5.7495,173.93,173.88,5.7508]
[1721956537955,5.7498,173.92,173.87,5.7513]
[1721956538777,5.7501,173.91,173.87,5.7513]
[1721956539086,14.3736,173.93,173.8,1.1501886]
[1721956539276,14.3736,173.93,173.8,46.1501886]
[1721956539472,45.0,173.92,173.81,20.0]
[1721956540079,14.3736,173.93,173.82,1.15030453]
[1721956540276,5.7503,173.91,173.86,5.7517]
[1721956540798,5.7505,173.9,173.85,5.7519]
[1721956541281,5.7507,173.89,173.84,5.7523]
[1721956541492,5.7504,173.9,173.85,5.752]
[1721956542884,5.7504,173.9,173.86,5.7517]
[1721956543572,5.7504,173.9,173.85,5.752]
[1721956543891,5.7504,173.9,173.86,5.7516]
[1721956544182,5.7501,173.91,173.86,5.7516]
[1721956544556,5.7504,173.9,173.86,5.7516]
[1721956544757,5.75,173.92,173.87,21.9218]
[1721956544993,5.7501,173.91,173.87,27.6731]
[1721956545165,5.7498,173.92,173.87,27.6731]
[1721956545360,5.7498,173.92,173.88,5.751]
[1721956545673,5.7498,173.92,173.87,27.6731]
[1721956547779,5.7501,173.91,173.87,21.9218]
[1721956548879,40.1366,173.97,173.87,21.9218]
[1721956549079,5.7501,173.91,173.87,21.9218]
[1721956549381,5.7505,173.9,173.87,21.9218]
[1721956549758,5.7508,173.89,173.87,21.9218]
[1721956552772,5.7508,173.89,173.83,6.6321]
[1721956552973,5.7521,173.85,173.83,6.6321]
[1721956553170,48.98,173.94,173.83,6.6321]
[1721956553370,45.0,173.93,173.85,5.7519]
[1721956553971,5.7508,173.89,173.84,5.7523]
[1721956554170,5.751,173.88,173.83,12.3847]
[1721956554473,34.3751,173.92,173.83,6.6321]
[1721956554674,5.7511,173.88,173.83,12.3846]
[1721956554879,5.7514,173.87,173.83,12.3846]
[1721956555078,34.3766,173.9,173.82,16.4867]
[1721956555278,5.7521,173.85,173.82,16.4867]
[1721956555883,45.0,173.89,173.82,16.4867]
[1721956556673,5.7515,173.87,173.82,22.2396]
[1721956558095,5.7518,173.86,173.82,22.2396]
[1721956558296,5.7518,173.86,173.82,16.4867]
[1721956560686,5.7515,173.87,173.82,22.2396]
[1721956560902,45.0,173.89,173.83,5.7526]
[1721956561066,5.7513,173.88,173.83,5.7526]
[1721956561265,45.0,173.87,173.83,5.7526]
[1721956561875,50.7515,173.87,173.83,5.7526]
[1721956562290,45.0,173.87,173.82,16.4867]
[1721956562485,5.7531,173.82,173.79,6.5149]
[1721956562796,5.7528,173.83,173.79,6.5149]
[1721956563497,5.7518,173.86,173.82,5.7529]
[1721956563701,5.7518,173.86,173.81,5.7533]
[1721956563878,45.0,173.85,173.79,6.5149]
[1721956564292,45.0,173.86,173.79,6.5149]
[1721956564595,5.7529,173.83,173.79,6.5149]
[1721956565106,5.7531,173.82,173.79,6.5149]
[1721956565476,5.7535,173.81,173.77,15.9563]
[1721956565682,25.78,173.84,173.77,15.9563]
[1721956565881,5.7533,173.82,173.77,21.7107]
[1721956566074,5.7534,173.81,173.77,15.9563]
[1721956566697,5.7531,173.82,173.78,5.7543]
[1721956566873,5.7535,173.81,173.77,21.7109]
[1721956567075,5.7534,173.81,173.77,15.9563]
[1721956567486,5.7543,173.79,173.77,15.9563]
[1721956567774,45.0,173.83,173.75,6.2392]
[1721956567775,5.7544,173.78,173.75,6.2392]
[1721956567974,54.3831,173.82,173.73,22.4128]
[1721956568189,5.7544,173.78,173.74,5.7556]
[1721956568395,5.7541,173.79,173.75,5.7553]
[1721956568694,5.7541,173.79,173.74,5.7556]
[1721956568998,14.3831,173.82,173.75,5.7553]
[1721956569292,14.3831,173.82,173.73,22.4128]
[1721956569293,5.7548,173.77,173.73,22.4128]
[1721956569893,70.78,173.81,173.73,22.4128]
[1721956570092,5.755,173.76,173.73,16.6568]
[1721956570294,5.7555,173.75,173.73,16.6568]
[1721956570488,34.3849,173.8,173.7,6.2392]
[1721956570694,5.756,173.73,173.7,6.2392]
[1721956570998,5.7558,173.74,173.7,6.2392]
[1721956571673,5.7573,173.7,173.68,16.2859]
[1721956571893,40.1693,173.75,173.68,16.2859]
[1721956572193,5.7565,173.72,173.68,22.0436]
[1721956572582,5.7568,173.71,173.68,16.2859]
[1721956572784,5.7571,173.7,173.68,16.2859]
[1721956572986,5.7573,173.69,173.66,6.4536]
[1721956573189,40.0,173.72,173.64,15.3084]
[1721956573493,5.7591,173.64,173.61,6.3305]
[1721956573893,5.7591,173.64,173.6,16.3428]
[1721956574085,5.7595,173.63,173.57,6.9144325]
[1721956574491,5.7595,173.63,173.58,5.7607]
[1721956574801,45.0,173.62,173.57,6.9144325]
[1721956574981,5.7607,173.59,173.57,0.8160325]
[1721956575181,45.0,173.62,173.57,0.8160325]
[1721956575980,5.7601,173.61,173.57,0.8160325]
[1721956576581,5.7593,173.63,173.57,0.8160325]
[1721956576785,5.7602,173.61,173.57,0.8160325]
[1721956577112,50.7603,173.6,173.57,0.8160325]
[1721956577313,45.0,173.62,173.58,5.761]
[1721956577491,45.0,173.63,173.59,5.7606]
[1721956578015,45.0,173.63,173.57,0.8160325]
[1721956578395,50.7594,173.63,173.58,5.761]
[1721956579611,25.78,173.67,173.57,0.8160325]
[1721956579907,5.7594,173.63,173.58,5.7609]
[1721956580214,5.7594,173.63,173.57,0.8160325]
[1721956580215,5.7606,173.6,173.57,0.8160325]
[1721956580423,5.7603,173.6,173.57,0.8160325]
[1721956580712,5.761,173.58,173.57,0.8160325]
[1721956580917,5.7607,173.59,173.57,0.8160325]
[1721956581228,5.7604,173.6,173.57,0.8160325]
[1721956581593,50.7607,173.59,173.57,0.8160325]
[1721956581999,45.0,173.59,173.57,0.8160325]
[1721956582215,45.0,173.6,173.57,6.5770325]
[1721956582416,45.0,173.6,173.57,0.8160325]
[1721956582600,45.0,173.6,173.57,6.5773325]
[1721956582917,45.0,173.61,173.58,5.761]
[1721956583233,5.766,173.69,173.57,0.8160325]
[1721956583234,28.09953528,173.67,173.57,0.8160325]
[1721956583514,5.7587,173.65,173.6,5.76]
[1721956583722,5.7591,173.64,173.59,5.7606]
[1721956583919,20.0,173.64,173.57,6.5770325]
[1721956584224,5.76,173.61,173.57,0.8160325]
[1721956584521,45.0,173.6,173.57,0.8160325]
[1721956585029,50.7604,173.6,173.57,0.8160325]
[1721956585187,45.0,173.6,173.57,0.8160325]
[1721956585392,5.761,173.58,173.57,0.8160325]
[1721956585596,50.761,173.58,173.57,0.8160325]
[1721956586119,76.541,173.58,173.57,0.8160325]
[1721956587603,76.541,173.58,173.49,6.0848]
[1721956587604,20.0,173.57,173.49,6.0848]
[1721956587805,45.0,173.56,173.48,15.7527]
[1721956588004,5.7627,173.53,173.48,21.5167]
[1721956588216,5.7623,173.54,173.49,5.7639]
[1721956588394,5.7623,173.54,173.5,5.7636]
[1721956588790,45.0,173.56,173.48,15.7527]
[1721956588791,5.7632,173.52,173.48,15.7527]
[1721956589012,5.7633,173.51,173.46,5.7649]
[1721956589214,5.764,173.49,173.44,21.9268]
[1721956589514,5.764,173.49,173.44,16.1612]
[1721956590014,50.7643,173.48,173.44,16.1612]
[1721956590211,45.0,173.48,173.44,16.1612]
[1721956590408,50.7645,173.48,173.44,16.1612]
[1721956590618,45.0,173.48,173.44,21.9268]
[1721956590814,50.7641,173.49,173.43,5.7659]
[1721956591116,5.7644,173.48,173.42,20.1813]
[1721956591312,45.0,173.47,173.42,20.1813]
[1721956591498,50.7649,173.47,173.42,20.1813]
[1721956591697,5.7651,173.46,173.42,14.415]
[1721956591903,45.0,173.45,173.39,15.2342325]
[1721956592505,5.7657,173.44,173.39,15.2342325]
[1721956592822,45.0,173.43,173.41,5.7666]
[1721956593404,45.0,173.43,173.4,5.7669]
[1721956593736,45.0,173.43,173.39,15.2342325]
[1721956594024,5.765,173.46,173.41,5.7663]
[1721956594199,5.765,173.46,173.39,15.2342325]
[1721956594200,51.5443,173.49,173.43,5.7659]
[1721956594602,39.12081748,173.52,173.47,5.7645]
[1721956594830,45.78,173.52,173.46,5.765]
[1721956595007,5.764,173.49,173.44,14.4134]
[1721956595202,45.78,173.52,173.43,16.6419]
[1721956595421,5.764,173.5,173.43,16.6419]
[1721956595828,25.78,173.52,173.43,16.6419]
[1721956595829,5.764,173.49,173.44,14.414]
[1721956596126,5.7636,173.51,173.46,5.7649]
[1721956596498,5.7637,173.5,173.44,20.1793]
[1721956596921,45.0,173.49,173.44,14.414]
[1721956597130,11.76068416,173.54,173.44,6.1936]
[1721956597322,25.99808416,173.54,173.44,6.1936]
[1721956597522,5.7626,173.54,173.44,6.1936]
[1721956598021,5.7626,173.54,173.45,1.15287775]
[1721956598425,31.542,173.55,173.5,5.7635]
[1721956598723,262.59831675,173.57,173.44,7.34635221]
[1721956598911,31.11656674,173.61,173.53,5.7625]
[1721956599118,5.7617,173.56,173.44,33.12617716]
[1721956599420,5.7633,173.51,173.44,6.1936]
[1721956600007,5.7633,173.51,173.46,5.7647]
[1721956600211,5.7626,173.54,173.44,6.1936]
[1721956600417,5.7626,173.54,173.48,5.7642]
[1721956600725,20.0,173.54,173.47,14.4116]
[1721956600916,20.0,173.54,173.44,6.1936]
[1721956600917,45.0,173.53,173.44,6.1936]
[1721956601127,25.78,173.52,173.44,6.1936]
[1721956601317,5.7639,173.5,173.44,11.9591]
[1721956601629,45.0,173.51,173.44,14.414]
[1721956601630,76.544,173.49,173.44,14.414]
[1721956601923,45.0,173.48,173.44,14.414]
[1721956602124,50.7644,173.48,173.42,5.7663]
[1721956602429,45.0,173.48,173.39,7.0538325]
[1721956602832,5.765,173.46,173.39,7.0538325]
[1721956603053,45.0,173.45,173.39,7.0538325]
[1721956603439,50.7654,173.45,173.39,7.0538325]
[1721956603637,5.7663,173.42,173.39,0.8160325]
[1721956603935,45.0,173.41,173.39,0.8160325]
[1721956604138,45.0,173.45,173.39,0.8160325]
[1721956604334,5.766,173.43,173.39,0.8160325]
[1721956604547,45.0,173.42,173.39,0.8160325]
[1721956604713,50.7663,173.42,173.39,0.8160325]
[1721956604916,5.7667,173.41,173.39,0.8160325]
[1721956605239,45.0,173.42,173.39,0.8160325]
[1721956605548,45.0,173.42,173.39,6.5830325]
[1721956605716,45.0,173.43,173.39,6.5830325]
[1721956606217,32.54714325,173.46,173.39,0.8160325]
[1721956606409,45.0,173.45,173.39,0.8160325]
[1721956607820,50.7656,173.45,173.39,0.8160325]
[1721956608072,50.7656,173.45,173.4,5.7669]
[1721956608253,45.0,173.45,173.4,5.7669]
[1721956608548,45.0,173.45,173.39,15.2343325]
[1721956608746,50.7653,173.45,173.39,15.2343325]
[1721956608959,45.0,173.45,173.41,5.7663]
[1721956609450,31.5443,173.49,173.44,5.7655]
[1721956609630,31.5443,173.49,173.43,5.7659]
[1721956609836,5.765,173.46,173.41,20.1824]
[1721956610146,45.78,173.49,173.39,0.8160325]
[1721956610447,25.78,173.46,173.39,0.8160325]
[1721956610830,5.7669,173.41,173.39,0.8160325]
[1721956611038,45.0,173.4,173.39,0.8160325]
[1721956611243,5.7663,173.42,173.39,0.8160325]
[1721956611751,31.546,173.43,173.39,0.8160325]
[1721956611925,25.78,173.46,173.39,0.8160325]
[1721956612127,5.7649,173.47,173.41,5.7663]
[1721956612826,25.78,173.49,173.44,5.7656]
[1721956613032,5.7637,173.5,173.45,5.7653]
[1721956613239,5.7637,173.5,173.44,5.7656]
[1721956613854,31.5433,173.52,173.46,5.7649]
[1721956614162,5.7633,173.51,173.45,5.7652]
[1721956614338,20.0,173.53,173.44,11.8929]
[1721956614543,5.7648,173.47,173.44,6.1273]
[1721956615255,5.765,173.46,173.41,5.7666]
[1721956615632,20.0,173.49,173.4,22.5775]
[1721956615633,5.7661,173.43,173.4,22.5775]
[1721956615826,20.0,173.47,173.4,16.4502]
[1721956616031,45.0,173.46,173.41,14.4158]
[1721956616248,43.5377,173.52,173.46,5.7649]
[1721956616249,34.8933,173.52,173.46,5.7649]
[1721956616458,34.8933,173.52,173.44,14.414]
[1721956616459,49.13,173.52,173.44,14.414]
[1721956616669,20.0,173.5,173.41,14.4164]
[1721956617257,49.13,173.52,173.41,14.4164]
[1721956617470,5.7644,173.48,173.43,5.7657]
[1721956617633,29.13,173.52,173.44,5.7655]
[1721956617834,45.0,173.51,173.44,5.7655]
[1721956618037,20.0,173.54,173.41,1.15314933]
[1721956618644,5.94236322,173.55,173.4,17.60324918]
[1721956618847,40.0,173.54,173.4,16.4502]
[1721956619052,20.0,173.51,173.4,16.4502]
[1721956619254,5.7648,173.47,173.4,16.4502]
[1721956619768,5.7648,173.47,173.42,5.766]
[1721956620061,5.7648,173.47,173.43,5.766]
[1721956620237,5.7644,173.48,173.43,5.766]
[1721956620439,5.764,173.49,173.44,5.7656]
[1721956620745,45.0,173.48,173.42,14.415]
[1721956620942,5.765,173.46,173.42,14.415]
[1721956621170,50.7646,173.48,173.42,20.1813]
[1721956621336,5.7639,173.5,173.42,14.415]
[1721956621537,5.7633,173.51,173.45,14.4133]
[1721956621766,55.295,173.56,173.49,5.764]
[1721956621952,5.7617,173.56,173.46,1.15287696]
[1721956622165,274.203278,173.6,173.51,14.4075]
[1721956622336,5.7607,173.59,173.54,5.7622]
[1721956622543,5.761,173.58,173.53,5.7626]
[1721956623245,34.3994,173.62,173.51,14.4075]
[1721956623246,5.762,173.56,173.51,14.4075]
[1721956624169,5.7624,173.54,173.49,15.0912]
[1721956624462,5.7627,173.53,173.49,15.0912]
[1721956624665,5.7627,173.53,173.48,5.7641]
[1721956624964,5.7627,173.53,173.45,21.8381]
[1721956624965,20.0,173.55,173.45,36.2513]
[1721956625156,5.7637,173.5,173.45,42.0165]
[1721956625464,5.7637,173.5,173.46,5.7649]
[1721956625643,5.7637,173.5,173.45,42.0165]
[1721956625962,5.7635,173.51,173.45,42.0166]
[1721956626135,49.13,173.57,173.49,5.7638]
[1721956626335,50.7617,173.56,173.48,14.4106]
[1721956626538,5.7613,173.58,173.53,5.7623]
[1721956626848,5.7614,173.57,173.52,14.4068]
[1721956627062,20.0,173.6,173.45,21.8381]
[1721956627241,20.0,173.56,173.45,21.8381]
[1721956627556,20.0,173.54,173.45,21.8381]
[1721956627767,5.7637,173.5,173.45,21.8381]
[1721956627959,45.0,173.53,173.49,5.7639]
[1721956628162,45.0,173.53,173.5,5.7636]
[1721956628461,45.0,173.53,173.45,21.8381]
[1721956628462,50.7623,173.54,173.49,5.7639]
[1721956628759,5.763,173.52,173.47,5.7646]
[1721956628962,5.7634,173.51,173.47,14.4109]
[1721956629145,5.763,173.52,173.47,20.1755]
[1721956629668,45.0,173.54,173.47,14.4109]
[1721956629856,45.0,173.55,173.48,5.7641]
[1721956630377,5.763,173.52,173.47,20.1755]
[1721956630970,45.0,173.55,173.45,21.8381]
[1721956631268,5.764,173.49,173.45,21.8381]
[1721956631839,45.0,173.48,173.41,14.4164]
[1721956632043,5.7654,173.45,173.41,14.4164]
[1721956632270,45.0,173.44,173.4,15.3953]
[1721956632472,5.766,173.43,173.39,0.8160325]
[1721956632644,45.0,173.42,173.39,0.8160325]
[1721956633342,5.7655,173.45,173.39,0.8160325]
[1721956633562,34.4085,173.51,173.4,14.4168]
[1721956633773,5.7646,173.47,173.42,5.766]
[1721956633951,45.0,173.48,173.44,5.7656]
[1721956634460,45.0,173.48,173.39,0.8160325]
[1721956634655,5.766,173.43,173.39,0.8160325]
[1721956634852,5.7657,173.44,173.39,6.5832325]
[1721956635077,45.0,173.46,173.39,0.8160325]
[1721956635366,5.7659,173.44,173.39,0.8160325]
[1721956635666,45.0,173.43,173.39,0.8160325]
[1721956636244,24.94038815,173.99,173.39,0.8160325]
[1721956636245,63.5408,173.49,173.39,0.8160325]
[1721956636446,45.0,173.48,173.39,0.8160325]
[1721956636748,5.766,173.43,173.39,0.8160325]
[1721956637048,40.0,173.47,173.39,0.8160325]
[1721956637049,45.0,173.42,173.39,0.8160325]
[1721956637239,5.767,173.4,173.39,0.8160325]
[1721956637664,50.767,173.4,173.39,0.8160325]
[1721956639049,56.7032175,173.4,173.39,0.8160325]
[1721956639652,5.7696,173.33,173.28,5.7708]
[1721956639952,5.7701,173.31,173.24,15.3336]
[1721956640275,20.0,173.32,173.24,21.1059]
[1721956640461,20.0,173.32,173.24,15.3336]
[1721956640462,5.771,173.28,173.24,15.3336]
[1721956641146,20.0,173.32,173.24,21.1056]
[1721956641360,5.7709,173.29,173.24,21.1056]
[1721956641573,45.0,173.28,173.25,5.7719]
[1721956641781,5.7696,173.33,173.28,5.7708]
[1721956641952,45.0,173.32,173.28,5.7708]
[1721956642147,5.7689,173.35,173.28,14.4267]
[1721956642462,5.768,173.37,173.33,5.7693]
[1721956642977,5.94619528,173.41,173.33,15.1896]
[1721956643280,20.0,173.38,173.29,15.2207]
[1721956643577,20.0,173.36,173.29,15.2207]
[1721956643747,5.769,173.34,173.29,20.9912]
[1721956644080,5.769,173.34,173.3,5.7702]
[1721956644372,5.7688,173.35,173.3,5.7703]
[1721956644559,45.0,173.34,173.29,15.2207]
[1721956644762,45.0,173.35,173.29,15.2207]
[1721956645150,5.7693,173.34,173.29,15.2207]
[1721956645357,5.7705,173.3,173.25,5.7717]
[1721956645645,45.0,173.29,173.22,0.8160325]
[1721956645980,45.0,173.33,173.26,14.429]
[1721956646147,50.7693,173.33,173.28,5.7707]
[1721956646348,50.7693,173.33,173.29,5.7706]
[1721956646571,20.0,173.36,173.3,5.7703]
[1721956646765,49.13,173.38,173.31,5.7699]
[1721956647074,20.0,173.35,173.28,14.4267]
[1721956647260,20.0,173.35,173.25,14.4299]
[1721956647648,28.838,173.39,173.25,14.4299]
[1721956647649,20.0,173.33,173.25,14.4299]
[1721956647869,45.0,173.32,173.25,14.4299]
[1721956648112,14.425,173.31,173.22,0.8160325]
[1721956648373,45.0,173.3,173.22,0.8160325]
[1721956648743,5.7707,173.29,173.24,5.7722]
[1721956649067,45.0,173.28,173.24,5.7722]
[1721956650972,45.0,173.28,173.22,0.8160325]
[1721956650973,20.0,173.27,173.22,0.8160325]
[1721956651158,5.7723,173.24,173.22,0.8160325]
[1721956651360,45.0,173.23,173.22,0.8160325]
[1721956652366,5.7717,173.26,173.22,0.8160325]